Cogmind - Beta 15 @@@ ROGUE MODE // 2025.07.22 @ 23:06:46 Player: shapeshifter Result: Destroyed by TR-SHG(R) with Subdweller Laser Performance ------------- Evolutions (0) 0 Regions Visited (3) 600 Robots Destroyed (18) 90 Value Destroyed (402) 402 Prototype IDs (0) 0 Alien Tech Used (0) 0 Bonus (44) 44 TOTAL SCORE: 1136 Bonus ------- Follower Combat Kills 44 Cogmind --------- Core Integrity 0/250 Matter 300/300 Energy 160/160 System Corruption 0% Temperature Cool (6) Movement Treading (160) Location -10/Subcaves Parts ------- > --- POWER (1) -------- Light Nuclear Core > --- PROPULSION (2) --- Spiked Treads > --- UTILITY (2) ------ Improved Terrain Scanner Terrain Scan Processor > --- WEAPON (2) ------- Subdweller Machine Gun Ripper > --- INVENTORY (5) ---- Humpback Subdweller Optics Subdweller Beam Cannon Subdweller Beam Cannon Peak State ------------ > --- POWER ------------ Light Nuclear Core > --- PROPULSION ------- Spiked Treads Wheel > --- UTILITY ---------- Improved Terrain Scanner Terrain Scan Processor > --- WEAPON ----------- Subdweller Machine Gun Ripper > --- INVENTORY -------- Huge Storage Unit Humpback High-capacity Matter Pod Makeshift Laser [Rating: 17] Favorites ----------- Power Ion Engine Engine Ion Engine Power Core Light Nuclear Core Propulsion Light Treads Treads Light Treads Wheel Wheel Utility Huge Storage Unit Device Seismic Detector Storage Huge Storage Unit Processor Terrain Scan Processor Weapon Subdweller Machine Gun Ballistic Gun Subdweller Machine Gun Slashing Weapon Ripper Build | -11 -10 -10 -10 ------- Run | Yrd Mat Min Sub Slots Evolved . | . . . . Power . | . . . . Propulsion . | . . . . Utility . | . . . . Weapon . | . . . . Parts Attached 19 | 9 2 1 7 Power 2 | 1 . . 1 Engine 1 | 1 . . . Core 1 | . . . 1 Reactor . | . . . . Propulsion 5 | 3 . . 2 Treads 3 | 2 . . 1 Leg . | . . . . Wheel 2 | 1 . . 1 Hover . | . . . . Flight . | . . . . Utility 5 | 3 . 1 1 Device 2 | 2 . . . Storage 2 | 1 . 1 . Processor 1 | . . . 1 Hackware . | . . . . Protection . | . . . . Artifact . | . . . . Weapon 7 | 2 2 . 3 Energy Gun . | . . . . Energy Cannon . | . . . . Ballistic Gun 6 | 2 2 . 2 Ballistic Cannon . | . . . . Launcher . | . . . . Special Weapon . | . . . . Impact Weapon . | . . . . Slashing Weapon 1 | . . . 1 Piercing Weapon . | . . . . Special Melee Weapon . | . . . . Unidentified Prototypes . | . . . . Parts Lost 6 | . . 1 5 Power 1 | . . . 1 Propulsion 4 | . . 1 3 Utility 1 | . . . 1 Weapon . | . . . . Highest Loss Streak 3 | . . 1 3 To Critical Strikes . | . . . . Average Backups 9 | 4 7 7 9 Power . | . 1 . . Propulsion . | 2 2 1 . Utility 4 | . 2 4 5 Weapon 2 | 1 1 1 3 Tool/Special . | . . . . Unused Backups 15 | . 5 . 10 Power 2 | . 2 . . Propulsion 2 | . 2 . . Utility 6 | . 1 . 5 Weapon 5 | . . . 5 Tool/Special . | . . . . Average Slot Usage (%) 78 | . 100 99 70 Engine 6 | . 14 14 3 Core 2 | . . . 3 Treads 8 | . 28 16 2 Wheel 11 | . . 11 13 Device 9 | . 14 14 7 Storage 11 | . 14 14 10 Processor 2 | . . . 3 Ballistic Gun 22 | . 28 28 20 Slashing Weapon 2 | . . . 3 Peak Build Rating 17 | 9 8 8 17 Average Rating 9 | 4 7 7 10 On Entrance 5 | . 7 8 8 Naked Turns . | . . . . Heaviest Build 91 | 14 14 89 91 Greatest Support 40 | 40 40 40 20 Greatest Overweight (x) 9 | 3 . 5 9 Average Overweight (x) 4 | . . 4 5 Largest Inventory Capacity 25 | 8 8 25 25 Average Capacity 18 | 7 8 21 19 Most Carried 14 | 8 8 8 14 Average Carried 9 | 5 7 7 9 Final Capacity 25 | 8 8 25 5 Final Carried 8 | 7 8 8 5 Class Distribution -------------------- 100% | Mutant Dominant Class ---------------- Mutant | -10/Materials Mutant | -10/Mines Mutant | -10/Subcaves Resources | -11 -10 -10 -10 ----------- Run | Yrd Mat Min Sub Matter Collected 832 | 222 179 227 204 Remotely . | . . . . Salvage Created 520 | 27 231 108 154 Parts 38 | 4 15 6 13 Haulers Intercepted . | . . . . Recyclers Shooed . | . . . . Parts Field Recycled . | . . . . Retrieved Matter . | . . . . Parts Self-Destructed 14 | . . . 14 Prevented . | . . . . Kills | -11 -10 -10 -10 ------- Run | Yrd Mat Min Sub Combat Hostiles Destroyed 16 | . 7 3 6 Guns 16 | . 7 3 6 Classes Destroyed 5 | 1 3 . 1 Builder 1 | . 1 . . Tunneler 1 | 1 . . . Swarmer 8 | . 3 1 4 Grunt 6 | . 4 2 . Subdweller 2 | . . . 2 Best Kill Streak 3 | 1 3 2 3 Combat Bots Only 3 | . 3 2 3 Max Kills in Single Turn 1 | 1 1 1 1 Gunslinging . | . . . . Exploded . | . . . . Melee . | . . . . Uniques/NPCs Destroyed . | . . . . Combat | -11 -10 -10 -10 -------- Run | Yrd Mat Min Sub Hostile Shots Fired 150 | . 42 27 81 Missed 50 | . 12 6 32 Hits 100 | . 30 21 49 Projectile 100 | . 30 21 49 Critical Strikes 1 | . . . 1 Damage Taken 1102 | . 318 240 544 Core 253 | . 54 59 140 Absorbed by Shields . | . . . . Core Remaining (%) 100 | 100 . . . Volleys Fired 58 | 4 31 11 12 Largest 2 | 1 2 2 2 Hottest 60 | 20 40 40 60 Shots Fired 111 | 4 62 22 23 Gun 111 | 4 62 22 23 Cannon . | . . . . Launcher . | . . . . Special . | . . . . Kinetic 111 | 4 62 22 23 Thermal . | . . . . Explosive . | . . . . Electromagnetic . | . . . . Robot Hit Streak 5 | 3 5 4 5 Robot Miss Streak 3 | . 3 2 1 Penetration Max . | . . . . Secondary Targets 3 | . 2 1 . Max Gunslinging Chain 1 | . 1 1 . Shots Hit Robots 65 | 3 37 14 11 Core Hits 29 | 1 14 8 6 Critical Kills 1 | . 1 . . Critical Parts Destroyed . | . . . . Critical Strikes 1 | . 1 . . Destroy 1 | . 1 . . Melee Attacks . | . . . . Impact . | . . . . Slashing . | . . . . Piercing . | . . . . Sneak Attacks . | . . . . Combat Hostiles . | . . . . Follow-up Attacks . | . . . . Damage Inflicted 815 | 39 427 156 193 Guns 815 | 39 427 156 193 Cannons . | . . . . Explosions . | . . . . Melee . | . . . . Ramming . | . . . . Kinetic 815 | 39 427 156 193 Thermal . | . . . . Explosive . | . . . . Electromagnetic . | . . . . Impact . | . . . . Slashing . | . . . . Piercing . | . . . . Highest Corruption . | . . . . Average Corruption . | . . . . Corruption Purged . | . . . . Corruption Blocked . | . . . . Overload Shots . | . . . . Overflow Damage . | . . . . Projectiles . | . . . . Explosions . | . . . . Melee . | . . . . Knockbacks . | . . . . Impact . | . . . . Kinetic . | . . . . Secondary . | . . . . Self-Inflicted Damage . | . . . . Shots . | . . . . Rammed . | . . . . Targets Rammed . | . . . . Kicked . | . . . . Crushed . | . . . . Highest Temperature 24 | . 12 24 . Average Temperature 7 | . 7 9 . Received Heat Transfer 423 | . 147 105 171 Siege Activations . | . . . . Martial Activations . | . . . . Shielding Activations . | . . . . Robots Disrupted . | . . . . Combat Hostiles . | . . . . Robots Corrupted . | . . . . Combat Hostiles . | . . . . Parts Fried . | . . . . Impact Corruptions . | . . . . Robots Melted . | . . . . Combat Hostiles . | . . . . Parts Melted . | . . . . Heat Transferred . | . . . . Parts Sabotaged . | . . . . Parts Stolen . | . . . . Parts Stripped . | . . . . Power Chain Reactions . | . . . . Alert | -11 -10 -10 -10 ------- Run | Yrd Mat Min Sub Maximum Alert Level . | . . . . Low Security (%) 100 | 100 100 100 . Level 1 . | . . . . Level 2 . | . . . . Level 3 . | . . . . Level 4 . | . . . . Level 5 . | . . . . High Security . | . . . . Max Security . | . . . . Peak Influence 97 | 5 97 78 . Initial . | . . . . Average 20 | . 43 12 . Influence Increases 548 | 5 186 128 229 Destroy 0b10 Robot/C 320 | . 140 100 80 Destroy 0b10 Robot/NC 10 | 5 5 . . Destroy Leader 50 | . 20 20 10 Allied During Kill 12 | . . 8 4 Successful Hack 21 | . 21 . . Lose Combat Pursuer 135 | . . . 135 Influence Decreases 520 | 5 186 106 223 Entered New Map 12 | . . . 12 Time Decay 392 | 5 130 96 161 Lost Part 40 | . . 10 30 Lost Ally 20 | . . . 20 Purge Threat 56 | . 56 . . Squads Dispatched 1 | . . 1 . Investigation . | . . . . Extermination . | . . . . Reinforcement . | . . . . Assault 1 | . . 1 . Garrison . | . . . . Intercept . | . . . . Searches Triggered . | . . . . Construction Impeded . | . . . . Haulers Reinforced . | . . . . Active Scanning Responses . | . . . . Cargo Convoy Interrupts . | . . . . Stealth | -11 -10 -10 -10 --------- Run | Yrd Mat Min Sub Distress Signals . | . . . . Communications Jammed . | . . . . Distress Signals . | . . . . Times Spotted 31 | . 12 5 14 Peak Tracking Total 6 | . 3 3 6 Tactical Retreats 3 | . . . 3 Traps | -11 -10 -10 -10 ------- Run | Yrd Mat Min Sub Traps Triggered 1 | . . . 1 Indirectly . | . . . . Trap Hack Attempts . | . . . . Triggered . | . . . . Disarmed . | . . . . Reprogrammed . | . . . . Reused . | . . . . Traps Extracted . | . . . . Installed . | . . . . Triggered . | . . . . Machines | -11 -10 -10 -10 ---------- Run | Yrd Mat Min Sub Machines Disabled . | . . . . Max in Single Turn . | . . . . Machines Repaired . | . . . . Machines Dismantled . | . . . . Machines Sabotaged . | . . . . Overloaded Fab Kills . | . . . . Hacking | -11 -10 -10 -10 --------- Run | Yrd Mat Min Sub Machines Accessed 4 | . 3 . 1 Terminals 3 | . 3 . . Fabricators . | . . . . Repair Stations . | . . . . Recycling Units . | . . . . Scanalyzers . | . . . . Garrison Access . | . . . . Total Hacks 13 | . 10 . 3 Successful 9 | . 6 . 3 Failed 4 | . 4 . . Catastrophic 1 | . 1 . . Database Lockouts . | . . . . Manual 5 | . 5 . . Terminals 10 | . 10 . . Fabricators . | . . . . Repair Stations . | . . . . Recycling Units . | . . . . Scanalyzers . | . . . . Garrison Access . | . . . . Terminal Hacks 6 | . 3 . 3 Record 3 | . . . 3 Level Access Points 1 | . 1 . . Terminal Index 1 | . 1 . . Unreport Threat 1 | . 1 . . Fabricator Hacks . | . . . . Repair Station Hacks . | . . . . Recycling Unit Hacks . | . . . . Scanalyzer . | . . . . Garrison Access Hacks . | . . . . Unauthorized Hacks 3 | . 3 . . Terminals 3 | . 3 . . Botnet 3 | . 3 . . Fabricators . | . . . . Repair Stations . | . . . . Recycling Units . | . . . . Scanalyzers . | . . . . Garrison Access . | . . . . Data Cores Recovered . | . . . . Used . | . . . . Hacking Detections 3 | . 3 . . Full Trace Events 2 | . 2 . . Feedback Events . | . . . . Feedback Blocked . | . . . . Robot Schematics Acquired . | . . . . Robots Built . | . . . . Authchips . | . . . . Time . | . . . . Total Robot Build Rating . | . . . . Part Schematics Acquired . | . . . . Parts Built . | . . . . Authchips . | . . . . Time . | . . . . Total Part Build Rating . | . . . . Parts Repaired . | . . . . Time . | . . . . Parts Recycled . | . . . . Recycled Matter . | . . . . Retrieved Matter . | . . . . Retrieved Components . | . . . . Parts Scanalyzed . | . . . . Part Schematics Acquired . | . . . . Parts Damaged . | . . . . Bothacking | -11 -10 -10 -10 ------------ Run | Yrd Mat Min Sub Used RIF Installer . | . . . . Robots Hacked . | . . . . Non-combat . | . . . . Combat . | . . . . Robot Hacks Applied . | . . . . Relay Couplers Released . | . . . . Fabnet Peak Effective % . | . . . . Robots Rewired . | . . . . Allies Hacked . | . . . . Hacks Repelled . | . . . . Allies | -11 -10 -10 -10 -------- Run | Yrd Mat Min Sub Total Allies 4 | . . 4 . Largest Group 3 | . . 3 3 Highest-Rated Group 63 | . . 63 63 Highest-Rated Ally 31 | . . 31 31 Total Orders . | . . . . Ally Attacks 35 | . . 3 32 Total Damage 332 | . . 49 283 Kills 3 | . . 2 1 Allies Corrupted . | . . . . Allies Melted . | . . . . Intel | -11 -10 -10 -10 ------- Run | Yrd Mat Min Sub Active Infowar (turns) 2230 | 18 315 653 1244 Terrain 683 | 2 . . 681 Seismic 1547 | 16 315 653 563 Robot Analysis Total . | . . . . Derelict Logs Recovered 3 | . . 1 2 Drone Launches . | . . . . Drone Recoveries . | . . . . Exploration | -11 -10 -10 -10 ------------- Run | Yrd Mat Min Sub Turns Passed 3498 | 128 315 653 2402 Spaces Moved 1778 | 64 135 325 1254 Core 29 | 29 . . . Treads 276 | 35 135 38 68 Legs . | . . . . Wheels 1473 | . . 287 1186 Hover . | . . . . Flight . | . . . . Fastest Speed 50 | 50 160 100 95 Average Speed 166 | 153 160 172 165 Slowest Speed 215 | 200 160 175 215 Overloaded Moves . | . . . . Propulsion Burnouts . | . . . . Robots Hopped . | . . . . Potential Cave-ins . | . . . . Cave-ins Triggered . | . . . . Exploration Rate (%) 38 | 6 30 77 40 Regions Visited 3 Branch Regions 2 Pre-discovered Areas 1 | . . 1 . Known Exits Taken . | . . . . Unknown Exits Taken 3 | 1 1 1 . Scrap Searched 8 | . . 1 7 Spaces Dug . | . . . . Terrain Destroyed . | . . . . Melee . | . . . . Projectile . | . . . . AOE . | . . . . Terrain Rammed . | . . . . Walls Destroyed . | . . . . Machines Disabled . | . . . . Actions | -11 -10 -10 -10 --------- Run | Yrd Mat Min Sub Total 2227 | 88 181 398 1560 Wait 319 | . . 58 261 Move 1775 | 63 134 324 1254 Hop . | . . . . Pick Up 31 | 12 7 2 10 Fast Attach 3 | 2 . . 1 Attach 13 | 5 . 1 7 Detach 2 | . . . 2 Swap 7 | 2 2 1 2 Drop 19 | . 7 1 11 Fire 58 | 4 31 11 12 Melee . | . . . . Ram . | . . . . Kick . | . . . . Crush . | . . . . Escape Stasis . | . . . . Rewire . | . . . . Trap . | . . . . Miscellaneous . | . . . . Route ------- -11/Scrapyard -10/Materials (discovered 5 exits: Mat x3 / [*Min x2]) -10/Mines (discovered 3 exits: *Mat x2 / *Sub) -10/Subcaves (discovered 2 exits: [*Mat] / [*Rec]) History --------- Turn | Location | Event 16 | -11/Scrapyard | Discovered new exit (range 14) 129 | -11/Scrapyard | Entered Materials 222 | -10/Materials | Identified exit to Materials 307 | -10/Materials | Build established: Mutant 422 | -10/Materials | Discovered new exit (range 6) 434 | -10/Materials | Discovered new exit (range 10) 444 | -10/Materials | Entered Mines 666 | -10/Mines | Assisted by bots powering up and referring to "LRC-V3" 754 | -10/Mines | Discovered exit to Materials (range 10) 934 | -10/Mines | Discovered exit to Materials (range 14) 971 | -10/Mines | Met a Derelict testing a Signal Generator 1071 | -10/Mines | Learned location of Zion (-6) 1087 | -10/Mines | Discovered new exit (range 5) 1097 | -10/Mines | Entered Subcaves 1097 | -10/Subcaves | Accompanied by 3 allies 1098 | -10/Subcaves | Approached by a straggling Scientist 1204 | -10/Subcaves | Discovered new exit (range 5) 1225 | -10/Subcaves | Shifting Twisted Machinery released Mak. Hacking Suite 1247 | -10/Subcaves | Shifting Twisted Machinery released Sub. Machine Gun 1474 | -10/Subcaves | Core integrity fell below 50% 1518 | -10/Subcaves | Visited Clippyterm 1523 | -10/Subcaves | Learned Research security intel 1574 | -10/Subcaves | Learned 8 Materials zone layouts 1640 | -10/Subcaves | Discovered new exit (range 14) 1691 | -10/Subcaves | Lost 3 parts (1p1n1u) 3300 | -10/Subcaves | Core integrity fell below 20% 3322 | -10/Subcaves | Shifting Twisted Machinery released Sub. Shrapnel Launcher 3499 | -10/Subcaves | Destroyed by TR-SHG(R) with Subdweller Laser Last Messages --------------- 03373_ Subatomizers dissect the Disposable Heat Sink. 03373_ Searching scrap... 03373_ Found Battle Rifle. 03373_ Found Sub. Beam Cannon. 03373_ Found 34 Matter. 03377_ Dropped Huge Storage Unit. 03377_ Huge Storage Unit crushed and broken. 03377_ Acquired Sub. Beam Cannon. 03383_ Dropped Mak. Laser. 03387_ Acquired Sub. Beam Cannon. 03393_ 4W-X6R(O) collects matter. 03410_ 4W-X6R(O) puts together Sub. Optics. 03410_ 4W-X6R(O) collects matter. 03428_ Dropped Hcp. Matter Pod. 03429_ Acquired Sub. Optics. 03430_ 4W-X6R(O) extracts matter from Hcp. Matter Pod. 03450_ 4W-X6R(O) puts together Battle Rifle. 03469_ Wheel destroyed. Map ----- +----------------------------------------------------+ | ?#????????????###?##??#### ### ##?## # ### | | #?#?#???????####?######?##!!#/#" ### ## | | #????????????####?#?#?#####[ & [ | | ##??????????###??#?##?####[!"##" #### | | ???#?????????####?######?# ## #??? | | ?#?##???????###??##???##?####### ## ## ##??# | | ??##??###????#???####?????#?##### ### # ###? | | ##?##?##??????##?#?####?##???######?## # #?#? | | ?##?#??????#?#??#??#??#?######?##?##### # ###? | | ?###?#????????#?##?##??#?#??########?## # ##?## | | ###??#?#??#?????#??#??#?#####?##?###### ###? | | #???#???##????###?########?######## # ## | | #?####??#??#?#???####?########## # # | | #?####?#?#???##??#?####